bitfinex/quotes_BTCUSD_20250412
["timestamp","ask_amount","ask_price","bid_price","bid_amount"]
[1744418195092,0.26261665,83434.0,83430.0,0.011986]
[1744418195325,0.239716,83432.0,83427.0,0.251716]
[1744418195475,0.011985,83433.0,83429.0,0.25171]
[1744418195675,0.01091869,83431.0,83429.0,0.25171]
[1744418195940,0.011985,83433.0,83430.0,0.011986]
[1744418197801,0.011985,83433.0,83355.0,0.05935504]
[1744418197976,0.239731,83427.0,83400.0,0.21326055]
[1744418198131,0.239764,83416.0,83410.0,0.011988]
[1744418198339,0.011988,83415.0,83411.0,0.154188]
[1744418198543,0.011988,83415.0,83412.0,0.351988]
[1744418198748,0.239767,83414.0,83412.0,0.34]
[1744418200050,0.239773,83413.0,83411.0,0.1422]
[1744418200259,0.239779,83410.0,83409.0,0.00091086]
[1744418200457,0.249779,83410.0,83409.0,0.00091086]
[1744418201269,0.01,83410.0,83409.0,0.00091086]
[1744418201473,0.4188,83414.0,83412.0,0.239773]
[1744418202083,0.01082869,83413.0,83412.0,0.239773]
[1744418202701,0.01082869,83413.0,83411.0,0.058688]
[1744418203305,0.01082869,83413.0,83411.0,0.0467]
[1744418203648,0.239779,83410.0,83409.0,0.00091086]
[1744418203792,0.25057002,83410.0,83409.0,0.00091086]
[1744418203992,0.26057002,83410.0,83409.0,0.00091086]
[1744418204191,0.28291258,83410.0,83409.0,0.00091086]
[1744418204837,0.29129027,83410.0,83409.0,0.00091086]
[1744418205034,0.30246061,83410.0,83409.0,0.00091086]
[1744418205238,0.84210215,83410.0,83409.0,0.00091086]
[1744418205558,1.251566,83410.0,83409.0,0.00091086]
[1744418206845,0.88820215,83410.0,83409.0,0.00091086]
[1744418207211,0.88441821,83410.0,83409.0,0.00091086]
[1744418213281,1.23895906,83410.0,83409.0,0.00091086]
[1744418215040,1.22441821,83410.0,83409.0,0.00091086]
[1744418215662,0.47769767,83410.0,83409.0,0.00091086]
[1744418215900,0.46769767,83410.0,83409.0,0.24069286]
[1744418216311,0.43697742,83410.0,83409.0,0.33639286]
[1744418216679,0.42580708,83410.0,83409.0,0.47863286]
[1744418219775,0.00700708,83410.0,83409.0,0.47863286]
[1744418220181,0.4188,83416.0,83413.0,0.251758]
[1744418220507,0.4188,83416.0,83409.0,0.19035086]
[1744418220508,0.239767,83414.0,83409.0,0.19035086]
[1744418220900,0.239778,83411.0,83409.0,0.00091086]
[1744418221068,0.47538239,83410.0,83409.0,0.00091086]
[1744418221449,0.66883843,83410.0,83409.0,0.00091086]
[1744418221642,1.01315099,83399.0,83398.0,4e-07]
[1744418221844,1.63212133,83399.0,83398.0,4e-07]
[1744418222274,1.54484889,83399.0,83398.0,4e-07]
[1744418222682,0.011993,83381.0,83363.0,0.07331074]
[1744418222811,0.239868,83379.0,83365.0,0.07331074]
[1744418223011,0.52070954,83379.0,83378.0,0.0013125]
[1744418223257,0.96181198,83379.0,83378.0,0.0013125]
[1744418223600,0.97296472,83379.0,83378.0,0.0013125]
[1744418223851,0.98132504,83379.0,83378.0,0.0013125]
[1744418225252,0.98832709,83379.0,83378.0,0.0013125]
[1744418233704,0.62761755,83379.0,83378.0,0.0013125]
[1744418233885,0.44531425,83379.0,83378.0,0.0487125]
[1744418234661,0.43695393,83379.0,83378.0,0.0487125]
[1744418234953,0.42580119,83379.0,83378.0,0.0487125]
[1744418237350,0.00700205,83379.0,83378.0,0.0487125]
[1744418237699,0.011991,83389.0,83385.0,0.011992]
[1744418237933,0.00610685,83388.0,83386.0,0.011992]
[1744418238048,0.00610685,83388.0,83386.0,0.251838]
[1744418238249,0.011991,83390.0,83386.0,0.251838]
[1744418238500,0.011992,83388.0,83385.0,0.011992]
[1744418238700,0.00501736,83387.0,83385.0,0.011992]
[1744418240497,0.011991,83389.0,83385.0,0.011992]
[1744418240695,0.00459403,83388.0,83385.0,0.011992]
[1744418242282,0.00459403,83388.0,83384.0,0.239851]
[1744418242283,0.01658603,83388.0,83380.0,0.239864]
[1744418242488,0.239852,83385.0,83378.0,0.2885825]
[1744418242687,0.239865,83380.0,83378.0,0.0487125]
[1744418242889,0.011992,83383.0,83378.0,0.0487125]
[1744418242890,0.00459579,83379.0,83378.0,0.0133055]
[1744418243094,0.011992,83387.0,83382.0,0.011992]
[1744418243315,0.41879914,83390.0,83389.0,0.25183]
[1744418243533,0.01199,83397.0,83392.0,0.011991]
[1744418243795,0.011991,83393.0,83390.0,0.057691]
[1744418244219,0.011991,83393.0,83390.0,0.0457]
[1744418244220,0.239831,83392.0,83390.0,0.0457]
[1744418244414,0.011992,83382.0,83379.0,0.1454]
[1744418244650,0.239862,83381.0,83379.0,0.1454]
[1744418244807,0.65866114,83381.0,83379.0,0.1454]
[1744418247879,0.41879914,83398.0,83395.0,0.25181]
[1744418248080,0.44078914,83398.0,83394.0,0.011991]
[1744418248478,0.44078914,83398.0,83393.0,0.011991]
[1744418248888,0.44078914,83398.0,83395.0,0.011991]
[1744418249094,0.00837989,83397.0,83395.0,0.011991]
[1744418249723,0.02036989,83397.0,83393.0,0.011991]
[1744418250254,0.00837989,83396.0,83393.0,0.011991]
[1744418250452,0.011991,83392.0,83389.0,0.0457]
[1744418250808,0.011992,83386.0,83382.0,0.011992]
[1744418251011,0.011993,83381.0,83378.0,0.0133055]
[1744418251524,0.251851,83383.0,83379.0,0.011993]
[1744418251736,0.011992,83388.0,83382.0,0.239857]
[1744418251941,0.011992,83388.0,83383.0,0.011992]
[1744418252114,0.011989,83403.0,83397.0,0.239816]
[1744418252974,0.25178,83406.0,83397.0,0.239816]
[1744418253177,0.011988,83414.0,83397.0,0.287516]
[1744418253328,0.011989,83408.0,83397.0,0.287516]
[1744418253523,0.011989,83406.0,83397.0,0.287516]
[1744418255779,0.01199,83400.0,83395.0,0.011991]
[1744418255956,0.01199,83400.0,83395.0,0.251813]
[1744418257264,0.239819,83396.0,83393.0,0.14536]
[1744418257441,0.239822,83395.0,83393.0,0.14536]
[1744418257626,0.239822,83395.0,83385.0,0.239848]
[1744418257627,0.011993,83381.0,83377.0,0.0477]
[1744418257821,0.239857,83383.0,83379.0,0.011993]
[1744418258048,0.011992,83384.0,83381.0,0.011993]
[1744418258735,0.011992,83384.0,83379.0,0.251859]
[1744418258736,0.011992,83382.0,83379.0,0.251859]
[1744418258944,0.011992,83384.0,83380.0,0.011993]
[1744418259686,0.011992,83384.0,83381.0,0.011993]
[1744418261645,0.011993,83381.0,83378.0,0.0013125]
[1744418261850,0.67064014,83386.0,83380.0,0.251856]
[1744418262489,0.41879914,83386.0,83383.0,0.011992]
[1744418263359,0.43079114,83386.0,83383.0,0.011992]
[1744418265315,0.011992,83385.0,83381.0,0.011993]
[1744418265531,0.251845,83385.0,83381.0,0.011993]
[1744418266910,0.011992,83385.0,83381.0,0.251853]
[1744418269425,0.011992,83385.0,83382.0,0.011992]
[1744418270835,0.41879914,83386.0,83383.0,0.251846]
[1744418271035,0.011992,83385.0,83382.0,0.011992]
[1744418271236,0.41879914,83386.0,83385.0,0.239851]
[1744418271691,0.41879914,83386.0,83385.0,0.288151]
[1744418272594,0.011991,83394.0,83390.0,0.251826]
[1744418273211,0.00839306,83393.0,83390.0,0.251826]
[1744418273986,0.00839306,83392.0,83390.0,0.251826]
[1744418275099,0.011991,83394.0,83390.0,0.251826]
[1744418275502,0.011991,83394.0,83390.0,0.011991]
[1744418276158,0.251819,83393.0,83388.0,0.011992]
[1744418276922,0.011991,83392.0,83388.0,0.011992]
[1744418277861,0.011991,83392.0,83388.0,0.251831]
[1744418280180,0.011991,83392.0,83389.0,0.011991]
[1744418281002,0.011991,83393.0,83390.0,0.011991]
[1744418281245,0.251819,83393.0,83390.0,0.011991]
[1744418281608,0.011991,83392.0,83389.0,0.011991]
[1744418283406,0.011991,83393.0,83390.0,0.011991]
[1744418283812,0.00839782,83392.0,83390.0,0.011991]
[1744418284796,0.00839782,83391.0,83390.0,0.011991]
[1744418285680,0.00839782,83391.0,83390.0,0.251827]
[1744418285885,0.00839782,83391.0,83390.0,0.011991]
[1744418286460,0.00839782,83391.0,83390.0,0.06188911]
[1744418286661,0.41879914,83395.0,83394.0,0.239825]
[1744418286861,0.41879914,83419.0,83417.0,0.239757]
[1744418288765,0.0004222,83429.0,83424.0,0.239739]
[1744418288986,0.0004222,83429.0,83426.0,0.251717]
[1744418289190,0.0104222,83429.0,83428.0,0.239727]
[1744418289436,0.0004222,83429.0,83428.0,0.239727]
[1744418292764,0.0004222,83429.0,83428.0,0.45396567]
[1744418292898,0.0004222,83429.0,83428.0,0.45156854]
[1744418293124,0.41879914,83443.0,83442.0,0.239687]
[1744418293335,0.00014065,83443.0,83442.0,0.5196401]
[1744418293557,0.00014065,83443.0,83442.0,0.8572435]
[1744418294166,0.00014065,83443.0,83442.0,0.87178435]
[1744418294369,0.000422,83445.0,83443.0,0.35454085]
[1744418294582,0.000422,83445.0,83443.0,0.47538239]
[1744418296013,0.0125981,83459.0,83447.0,0.59421385]
[1744418296218,0.0125981,83459.0,83447.0,0.71505539]
[1744418299557,0.0125981,83459.0,83447.0,0.70051454]
[1744418299766,0.0125981,83459.0,83447.0,0.84539454]
[1744418304395,0.011983,83445.0,83442.0,0.01175496]
[1744418304607,0.011983,83450.0,83443.0,0.011984]
[1744418304742,0.011983,83450.0,83445.0,0.011983]
[1744418305165,0.013983,83449.0,83445.0,0.011983]
[1744418305381,0.002,83449.0,83445.0,0.011983]
[1744418305583,0.002,83449.0,83446.0,0.239675]
[1744418305955,0.002,83449.0,83445.0,0.011983]
[1744418306161,0.239691,83441.0,83439.0,0.14488]
[1744418308264,0.249691,83441.0,83439.0,0.14488]
[1744418308465,0.249691,83441.0,83427.0,0.396595]
[1744418308466,0.251699,83433.0,83427.0,0.396595]
[1744418308670,0.251699,83433.0,83429.0,0.239724]
[1744418308892,0.011985,83436.0,83430.0,0.251705]
[1744418309087,0.011985,83435.0,83430.0,0.251705]
[1744418309293,0.011984,83441.0,83432.0,0.011985]
[1744418309497,0.002,83449.0,83447.0,0.239673]
[1744418309669,0.010422,83448.0,83447.0,0.239673]
[1744418309871,0.011984,83444.0,83441.0,0.011984]
[1744418310073,0.261667,83444.0,83439.0,0.011984]
[1744418310558,0.011984,83443.0,83440.0,0.011984]
[1744418310764,0.011984,83443.0,83410.0,1.664878]
[1744418310765,0.251693,83435.0,83427.0,0.00014065]
[1744418310990,0.239714,83433.0,83432.0,0.14488]
[1744418311106,0.011985,83435.0,83432.0,0.14488]
[1744418311315,0.01,83435.0,83433.0,0.011985]
[1744418311517,0.01,83435.0,83433.0,0.2540921]
[1744418311720,0.41879914,83450.0,83446.0,0.239675]
[1744418312486,0.011984,83444.0,83436.0,0.251688]
[1744418312707,0.011984,83444.0,83436.0,0.011985]
[1744418312708,0.011984,83440.0,83436.0,0.011985]
[1744418312937,0.01,83440.0,83437.0,0.251686]
[1744418313138,0.01,83440.0,83439.0,0.239696]
[1744418313927,0.011984,83444.0,83441.0,0.011984]
[1744418315626,0.011984,83443.0,83439.0,0.239696]
[1744418315824,0.011984,83443.0,83439.0,0.25168]
[1744418316024,0.011984,83443.0,83440.0,0.011984]
[1744418317247,0.00837291,83442.0,83440.0,0.011984]
[1744418317571,0.02035691,83442.0,83437.0,0.011985]
[1744418317794,0.239713,83433.0,83428.0,0.011986]
[1744418317955,0.011985,83437.0,83428.0,0.011986]
[1744418317956,0.011985,83436.0,83432.0,0.39658]
[1744418318294,0.01,83436.0,83434.0,0.239708]
[1744418318490,0.01,83436.0,83433.0,0.251697]
[1744418318789,0.021985,83436.0,83433.0,0.011985]
[1744418319322,0.01,83436.0,83433.0,0.251696]
[1744418320571,0.251683,83438.0,83433.0,0.251696]
[1744418320572,0.251683,83438.0,83435.0,0.011985]
[1744418322003,0.0083802,83437.0,83435.0,0.011985]
[1744418322703,0.0083802,83436.0,83435.0,0.011985]
[1744418323160,0.23972,83431.0,83420.0,0.239748]
[1744418323308,0.239726,83429.0,83422.0,0.156867]
[1744418323513,0.249726,83429.0,83422.0,0.011987]
[1744418323852,0.249726,83429.0,83425.0,0.011986]
[1744418324033,0.249726,83429.0,83423.0,0.239739]
[1744418324242,0.00837921,83428.0,83424.0,0.011986]
[1744418324470,0.01837921,83428.0,83427.0,0.23987065]
[1744418324696,0.00837921,83428.0,83427.0,0.23987065]
[1744418325041,0.41879914,83436.0,83435.0,0.239707]
[1744418326720,0.41879914,83436.0,83428.0,0.239727]
[1744418326897,0.011985,83432.0,83429.0,0.14488]
[1744418327103,0.011985,83434.0,83429.0,0.156866]
[1744418327324,0.011985,83434.0,83430.0,0.011986]
[1744418327904,0.41879914,83436.0,83434.0,0.239708]
[1744418328249,0.011984,83444.0,83439.0,0.011984]
[1744418328552,0.011984,83442.0,83439.0,0.011984]
[1744418328757,0.011984,83442.0,83436.0,0.011985]
[1744418328758,0.011984,83441.0,83436.0,0.251688]
[1744418329073,0.021984,83441.0,83437.0,0.011985]
[1744418329286,0.00838633,83440.0,83437.0,0.011985]
[1744418329794,0.00838633,83439.0,83437.0,0.011985]
[1744418330286,0.00838633,83439.0,83437.0,0.251684]
[1744418330491,0.00838633,83438.0,83437.0,0.251684]
[1744418331907,0.00838633,83438.0,83431.0,0.011985]
[1744418332064,0.239703,83437.0,83431.0,0.251702]
[1744418332264,0.011985,83432.0,83429.0,0.19368]
[1744418332604,0.251698,83434.0,83429.0,0.396588]
[1744418332780,0.011985,83434.0,83429.0,0.396588]
[1744418332987,0.239693,83440.0,83427.0,0.01212665]
[1744418332988,0.011983,83446.0,83442.0,0.251669]
[1744418333309,0.011984,83440.0,83437.0,0.011985]
[1744418333544,0.261678,83440.0,83436.0,0.239703]
[1744418333716,0.011984,83439.0,83436.0,0.239703]
[1744418333911,0.021984,83439.0,83436.0,0.239703]
[1744418334114,0.00839908,83438.0,83436.0,0.239703]
[1744418334295,0.01839908,83438.0,83436.0,0.239703]
[1744418334917,0.00839908,83437.0,83436.0,0.239703]
[1744418335095,0.01839908,83437.0,83436.0,0.239703]
[1744418335661,0.01839908,83437.0,83435.0,0.011985]
[1744418336018,0.011985,83434.0,83428.0,0.011986]
[1744418336561,0.251691,83436.0,83430.0,0.011986]
[1744418336763,0.011985,83434.0,83430.0,0.011986]
[1744418337004,0.251697,83434.0,83430.0,0.011986]
[1744418337215,0.011985,83433.0,83430.0,0.011986]
[1744418337878,0.00839908,83432.0,83430.0,0.011986]
[1744418338561,0.26010008,83432.0,83428.0,0.251711]
[1744418338775,0.239727,83429.0,83427.0,0.00014065]
[1744418339497,0.00841182,83428.0,83427.0,0.00014065]
[1744418339697,0.01962758,83428.0,83427.0,0.00014065]
[1744418341752,0.01962758,83428.0,83427.0,0.55677931]
[1744418341949,0.41879914,83454.0,83445.0,0.011983]
[1744418342115,0.41879914,83454.0,83446.0,0.239675]
[1744418342579,0.43078114,83454.0,83447.0,0.0466]
[1744418342739,0.011982,83453.0,83447.0,0.0466]
[1744418343455,0.011982,83452.0,83447.0,0.0466]
[1744418343855,0.011982,83453.0,83447.0,0.0466]
[1744418345503,0.43078114,83454.0,83447.0,0.0466]
[1744418346246,0.011983,83447.0,83444.0,0.14488]
[1744418346444,0.0208129,83448.0,83444.0,0.384561]
[1744418346644,0.011984,83441.0,83435.0,0.011985]
[1744418346872,0.011984,83441.0,83438.0,0.14488]
[1744418347053,0.239684,83443.0,83438.0,0.384578]
[1744418347260,0.239692,83441.0,83438.0,0.14488]
[1744418347459,0.239696,83439.0,83438.0,0.14488]
[1744418347616,0.251676,83441.0,83438.0,0.14488]
[1744418348161,0.00840576,83440.0,83438.0,0.14488]
[1744418348673,0.00840576,83439.0,83438.0,0.14488]
[1744418348880,0.18840576,83439.0,83438.0,0.14488]
[1744418349175,0.18840576,83439.0,83428.0,0.011986]
[1744418349176,0.011985,83433.0,83429.0,0.011986]
[1744418349600,0.239716,83432.0,83428.0,0.011986]
[1744418350438,0.41879914,83431.0,83427.0,0.14502065]
[1744418350653,0.251707,83430.0,83427.0,0.14502065]
[1744418350859,0.251707,83430.0,83427.0,0.00014065]
[1744418351053,0.239727,83428.0,83427.0,0.00014065]
[1744418351196,0.69852614,83428.0,83427.0,0.00014065]
[1744418351394,0.72933725,83428.0,83427.0,0.00014065]
[1744418352218,0.86137739,83428.0,83427.0,0.00014065]
[1744418352647,0.8389697,83428.0,83427.0,0.00014065]
[1744418353330,0.71812816,83428.0,83427.0,0.00014065]
[1744418353734,0.43840116,83428.0,83427.0,0.00014065]
[1744418353936,0.42999774,83428.0,83427.0,0.04524065]
[1744418354383,0.41879914,83428.0,83427.0,0.04524065]
[1744418354721,0.41879914,83438.0,83435.0,0.011985]
[1744418355105,0.41879914,83438.0,83436.0,0.239704]
[1744418355308,0.251698,83433.0,83429.0,0.011986]
[1744418355726,0.251698,83433.0,83427.0,0.00014065]
[1744418355727,0.239727,83428.0,83427.0,0.00014065]
[1744418356557,0.249727,83428.0,83427.0,0.00014065]
[1744418357794,0.25812266,83428.0,83427.0,0.00014065]
[1744418358872,0.3789642,83428.0,83427.0,0.00014065]
[1744418359278,0.80895552,83428.0,83427.0,0.00014065]
[1744418364518,0.79776334,83428.0,83427.0,0.00014065]
[1744418365837,0.81230419,83428.0,83427.0,0.00014065]
[1744418366071,0.79776334,83428.0,83427.0,0.00014065]
[1744418366440,0.4371948,83428.0,83427.0,0.00014065]
[1744418371519,0.42879914,83428.0,83427.0,0.00014065]
[1744418374181,0.01,83428.0,83427.0,0.00014065]
[1744418374382,0.01,83428.0,83427.0,0.23987065]
[1744418374590,0.011985,83432.0,83428.0,0.011986]
[1744418374994,0.251695,83435.0,83430.0,0.011986]
[1744418375355,0.011985,83435.0,83432.0,0.011985]
[1744418375604,0.011985,83435.0,83430.0,0.251705]
[1744418375972,0.011985,83435.0,83431.0,0.011985]
[1744418376175,0.67048614,83437.0,83431.0,0.011985]
[1744418376176,0.41879914,83437.0,83436.0,0.239704]
[1744418377383,0.41879914,83437.0,83434.0,0.251695]
[1744418381623,0.011985,83436.0,83432.0,0.301501]
[1744418381837,0.239719,83431.0,83428.0,0.14392]
[1744418382040,0.011985,83431.0,83428.0,0.155906]
[1744418382362,0.239724,83429.0,83415.0,0.011988]
[1744418382604,0.249724,83429.0,83420.0,0.011987]
[1744418382914,0.249724,83429.0,83417.0,0.011987]
[1744418383182,0.249724,83429.0,83421.0,0.011987]
[1744418383995,0.41879914,83428.0,83420.0,0.011987]
[1744418384177,0.42879914,83428.0,83419.0,0.0451]
[1744418384376,0.42879914,83428.0,83426.0,0.239733]
[1744418384555,0.41879914,83428.0,83425.0,0.011986]
[1744418385274,0.41879914,83428.0,83423.0,0.011987]
[1744418385699,0.41879914,83428.0,83424.0,0.011986]
[1744418386156,0.41879914,83428.0,83423.0,0.011987]
[1744418386466,0.41879914,83428.0,83424.0,0.011986]
[1744418390087,0.41879914,83428.0,83423.0,0.011987]
[1744418390293,0.41879914,83428.0,83424.0,0.011986]
[1744418392410,0.41879914,83428.0,83425.0,0.011986]
[1744418396189,0.56879914,83428.0,83412.0,0.239773]
[1744418396388,0.68964068,83428.0,83411.0,0.18952]
[1744418396590,0.68964068,83428.0,83411.0,0.14392]
[1744418396791,0.69803782,83428.0,83401.0,0.0008438]
[1744418397013,0.69803782,83428.0,83401.0,0.0128338]
[1744418397214,0.69803782,83428.0,83402.0,0.01199]
[1744418397793,0.70922447,83428.0,83402.0,0.01199]
[1744418398001,0.70922447,83428.0,83401.0,0.0128338]
[1744418398002,0.82784384,83428.0,83401.0,0.0008438]
[1744418398206,0.82784384,83428.0,83403.0,0.239797]
[1744418398408,0.81330299,83428.0,83403.0,0.251786]
[1744418398783,0.81330299,83428.0,83401.0,0.0128338]
[1744418399274,0.81330299,83428.0,83405.0,0.0128328]
[1744418400127,0.76760299,83428.0,83405.0,0.0128328]
[1744418400533,0.76760299,83428.0,83405.0,0.0008438]
[1744418400794,0.88833147,83428.0,83405.0,0.0008438]
[1744418401037,0.76760299,83428.0,83405.0,0.0008438]
[1744418401669,0.76760299,83428.0,83407.0,0.011989]
[1744418402225,0.58838293,83428.0,83418.0,0.011987]
[1744418402375,0.58838293,83428.0,83420.0,0.011987]
[1744418402935,0.58838293,83428.0,83419.0,0.011987]
[1744418403257,0.58838293,83428.0,83427.0,0.23987065]
[1744418403661,0.58838293,83428.0,83427.0,0.00014065]
[1744418403774,0.56879914,83428.0,83427.0,0.00014065]
[1744418408723,0.57718628,83428.0,83427.0,0.00014065]
[1744418410539,0.56879914,83428.0,83427.0,0.00014065]
[1744418415148,0.41879914,83428.0,83427.0,0.00014065]
[1744418415490,0.41879914,83428.0,83427.0,0.04804065]
[1744418416012,0.41879914,83428.0,83427.0,0.00014065]
[1744418416396,0.69964068,83428.0,83427.0,0.00014065]
[1744418416606,0.70802623,83428.0,83427.0,0.00014065]
[1744418417725,0.58718469,83428.0,83427.0,0.00014065]
[1744418418024,0.70802623,83428.0,83427.0,0.00014065]
[1744418418425,0.75652623,83428.0,83427.0,0.00014065]
[1744418418585,0.84610294,83428.0,83427.0,0.00014065]
[1744418418927,1.2098246,83428.0,83427.0,6.5e-07]
[1744418419129,0.239788,83407.0,83406.0,0.07331074]
[1744418419362,0.93942803,83407.0,83406.0,0.07331074]
[1744418420239,0.94781358,83407.0,83406.0,0.07331074]
[1744418422210,0.94781358,83407.0,83405.0,0.0008438]
[1744418422549,0.12084154,83406.0,83405.0,0.0008438]
[1744418422848,0.28922709,83406.0,83405.0,0.0008438]
[1744418425032,0.70802558,83406.0,83405.0,0.0008438]
[1744418428352,0.77660878,83406.0,83405.0,0.0008438]
[1744418428577,0.72900878,83406.0,83405.0,0.0008438]
[1744418428976,0.71988198,83406.0,83405.0,0.0008438]
[1744418429430,0.58718404,83406.0,83405.0,0.0008438]
[1744418429539,0.42718404,83406.0,83405.0,0.0008438]
[1744418429753,0.00838555,83406.0,83405.0,0.0008438]
[1744418429950,0.011987,83419.0,83414.0,0.251754]
[1744418430151,4.685e-05,83417.0,83415.0,0.011988]
[1744418430412,0.01004685,83417.0,83415.0,0.011988]
[1744418430968,0.011988,83415.0,83408.0,0.011989]
[1744418431176,4.685e-05,83417.0,83410.0,0.011988]
[1744418431377,0.01022622,83414.0,83410.0,0.011988]
[1744418431585,0.23979,83406.0,83405.0,0.0008438]
[1744418431771,0.011989,83408.0,83405.0,0.0008438]
[1744418431977,0.01037378,83406.0,83405.0,0.0008438]
[1744418432223,0.36063154,83407.0,83405.0,0.0008438]
[1744418432428,0.01037378,83406.0,83405.0,0.0008438]
[1744418432597,0.02037378,83406.0,83405.0,0.0008438]
[1744418433450,0.01037378,83406.0,83405.0,0.2406368]
[1744418433751,0.41879849,83413.0,83412.0,0.239773]
[1744418434959,0.42908429,83413.0,83412.0,0.239773]
[1744418438860,0.42908429,83413.0,83407.0,0.011989]
[1744418438861,0.011989,83408.0,83405.0,0.0008438]
[1744418439069,0.251776,83408.0,83405.0,0.0008438]
[1744418439223,0.01038713,83407.0,83405.0,0.0008438]
[1744418440528,0.01038713,83407.0,83405.0,0.2406368]
[1744418440741,0.41879849,83413.0,83412.0,0.239773]
[1744418440981,0.41879849,83413.0,83412.0,0.431773]
[1744418441117,0.41879849,83413.0,83412.0,0.60131454]
[1744418441977,0.41879849,83413.0,83412.0,0.480473]
[1744418442395,0.41879849,83413.0,83412.0,0.338273]
[1744418442681,0.41879849,83413.0,83412.0,0.480473]
[1744418442873,0.011987,83422.0,83416.0,0.239762]
[1744418443085,0.251717,83427.0,83416.0,0.239762]
[1744418443086,0.41879849,83434.0,83416.0,0.36300101]
[1744418443253,0.41879849,83434.0,83416.0,0.70060354]
[1744418444971,0.41879849,83434.0,83416.0,0.71267701]
[1744418445169,0.41879849,83442.0,83416.0,0.81117701]
[1744418445307,0.000422,83448.0,83447.0,0.239673]
[1744418445509,0.0604689,83448.0,83447.0,0.239673]
[1744418445751,0.011983,83446.0,83442.0,0.251668]
[1744418445956,0.251661,83445.0,83440.0,0.300376]
[1744418446306,0.011985,83436.0,83433.0,0.011985]
[1744418446652,0.251681,83439.0,83434.0,0.011985]
[1744418447084,0.00879868,83438.0,83434.0,0.011985]
[1744418447976,0.2517,83433.0,83430.0,0.19138]
[1744418448185,0.01,83433.0,83431.0,0.011985]
[1744418448396,0.00878766,83432.0,83431.0,0.251703]
[1744418449014,0.011985,83435.0,83431.0,0.011985]
[1744418449213,0.00878766,83432.0,83431.0,0.011985]
[1744418449424,0.251695,83434.0,83431.0,0.011985]
[1744418449647,0.00878766,83432.0,83431.0,0.011985]
[1744418449849,0.251695,83434.0,83430.0,0.203366]
[1744418450011,0.00878766,83432.0,83430.0,0.203366]
[1744418450214,0.251695,83434.0,83430.0,0.203366]
[1744418450413,0.00878598,83431.0,83430.0,0.203366]
[1744418450624,0.251695,83434.0,83430.0,0.203366]
[1744418450823,0.00878598,83431.0,83430.0,0.203366]
[1744418451023,0.251695,83434.0,83430.0,0.203366]
[1744418451208,0.00878598,83431.0,83430.0,0.203366]
[1744418451408,0.251695,83434.0,83430.0,0.203366]
[1744418451631,0.00878598,83431.0,83430.0,0.203366]
[1744418451836,0.251695,83434.0,83430.0,0.203366]
[1744418452032,0.00888496,83431.0,83430.0,0.203366]
[1744418452233,0.251695,83434.0,83430.0,0.203366]
[1744418452439,0.00888496,83431.0,83430.0,0.203366]
[1744418452612,0.251695,83434.0,83430.0,0.203366]
[1744418452818,0.00888546,83431.0,83430.0,0.203366]
[1744418453312,0.251695,83434.0,83430.0,0.203366]
[1744418453511,0.00888882,83433.0,83430.0,0.203366]
[1744418454977,0.00888882,83433.0,83430.0,0.19138]
[1744418455210,0.00888882,83433.0,83430.0,0.203366]
[1744418455818,0.00888882,83433.0,83416.0,0.13274595]
[1744418455819,0.239749,83421.0,83418.0,0.0464]
[1744418455940,0.251729,83423.0,83420.0,0.14268]
[1744418456161,0.00886454,83420.0,83417.0,0.239756]
[1744418456343,0.011987,83423.0,83419.0,0.011987]
[1744418456563,0.011987,83423.0,83418.0,0.011987]
[1744418456564,0.0088613,83419.0,83416.0,0.34]
[1744418456784,0.239739,83424.0,83416.0,0.351988]
[1744418456990,0.239744,83423.0,83418.0,0.239755]
[1744418457316,0.251734,83422.0,83418.0,0.011987]
[1744418458303,0.239756,83418.0,83414.0,0.14268]
[1744418458501,0.239762,83416.0,83414.0,0.14268]
[1744418458903,0.011987,83417.0,83414.0,0.14268]
[1744418459082,0.239756,83418.0,83414.0,0.14268]
[1744418460494,0.239756,83418.0,83414.0,0.154668]
[1744418460932,0.251739,83420.0,83415.0,0.251753]
[1744418461130,0.251742,83419.0,83415.0,0.011988]
[1744418464985,0.00881523,83418.0,83415.0,0.011988]
[1744418465700,0.00881523,83418.0,83417.0,0.627659]
[1744418465833,0.00881523,83418.0,83417.0,0.80834139]
[1744418466035,0.002,83449.0,83442.0,0.011984]
[1744418466295,0.011984,83444.0,83441.0,0.14268]
[1744418466473,0.011984,83439.0,83430.0,0.011986]
[1744418466680,0.011985,83436.0,83433.0,0.011985]
[1744418466997,0.011984,83438.0,83433.0,0.011985]
[1744418467190,0.251682,83438.0,83434.0,0.011985]
[1744418470340,0.011984,83441.0,83437.0,0.011985]
[1744418470633,0.0004689,83448.0,83445.0,0.011983]
[1744418470823,0.0124519,83448.0,83445.0,0.011983]
[1744418471023,0.0224519,83448.0,83445.0,0.011983]
[1744418471244,0.011983,83446.0,83443.0,0.011984]
[1744418471585,0.01723139,83445.0,83442.0,0.011984]
[1744418471985,0.42762988,83445.0,83442.0,0.011984]
[1744418473252,0.42762988,83445.0,83442.0,0.25167]
[1744418473412,0.42762988,83445.0,83443.0,0.285882]
[1744418473616,0.41879849,83445.0,83443.0,0.285882]
[1744418473842,0.00883474,83444.0,83443.0,0.0462]
[1744418473979,0.00883474,83444.0,83440.0,0.011984]
[1744418474181,0.011985,83437.0,83435.0,0.14268]
[1744418474382,0.011984,83438.0,83435.0,0.14268]
[1744418474624,0.00886552,83436.0,83435.0,0.14268]
[1744418474823,0.011984,83440.0,83435.0,0.154665]
[1744418475027,0.251677,83440.0,83436.0,0.011985]
[1744418475244,0.011984,83439.0,83436.0,0.011985]
[1744418475440,0.021984,83439.0,83436.0,0.011985]
[1744418475622,0.01,83439.0,83436.0,0.251687]
[1744418478040,0.011984,83441.0,83438.0,0.011984]
[1744418478922,0.011984,83440.0,83435.0,0.154665]
[1744418479117,0.239696,83439.0,83435.0,0.154665]
[1744418479318,0.011984,83442.0,83436.0,0.011985]
[1744418479565,0.021984,83442.0,83437.0,0.239701]
[1744418479971,0.00892484,83441.0,83437.0,0.239701]
[1744418480171,0.01892484,83441.0,83437.0,0.239701]